fUSD/lending_fUSD_20250702
["ID","MTS","AMOUNT","RATE_DAILY","PERIOD"]
[369020789,1751435455900,-594.48,0.00016875,2]
[369020790,1751435455910,-490.0,0.00016875,2]
[369020791,1751435455920,-490.0,0.00016875,2]
[369020792,1751435455930,-909.28,0.00016875,2]
[369020793,1751435455939,-1269.02,0.00016875,2]
[369020794,1751435455949,-490.0,0.00016875,2]
[369020795,1751435455958,-490.0,0.00016875,2]
[369020796,1751435455968,-594.15589102,0.00016875,2]
[369020797,1751435455978,-2515.76,0.00016875,2]
[369020798,1751435455987,-2931.23,0.00016875,2]
[369020799,1751435455996,-1060.18,0.00016875,2]
[369020800,1751435456006,-490.0,0.00016875,2]
[369020801,1751435456015,-490.0,0.00016875,2]
[369020802,1751435456024,-2225.59,0.00016875,2]
[369020803,1751435456033,-490.0,0.00016875,2]
[369020804,1751435456042,-981.9,0.00016875,2]
[369020805,1751435456052,-490.0,0.00016875,2]
[369020807,1751435456061,-490.0,0.00016875,2]
[369020808,1751435456070,-490.0,0.00016875,2]
[369020810,1751435456079,-1572.95,0.00016875,2]
[369020812,1751435456088,-1333.82,0.00016875,2]
[369020814,1751435456098,-490.0,0.00016875,2]
[369020816,1751435456107,-490.0,0.00016875,2]
[369020818,1751435456116,-490.0,0.00016875,2]
[369020820,1751435456125,-490.0,0.00016875,2]
[369020822,1751435456134,-1540.3,0.00016875,2]
[369020824,1751435456143,-490.0,0.00016875,2]
[369020826,1751435456152,-1251.88,0.00016875,2]
[369020828,1751435456161,-490.0,0.00016875,2]
[369020830,1751435456170,-1622.31,0.00016875,2]
[369020832,1751435456179,-529.38,0.00016875,2]
[369020834,1751435456188,-490.0,0.00016875,2]
[369020836,1751435456197,-490.0,0.00016875,2]
[369020838,1751435456206,-490.0,0.00016875,2]
[369020840,1751435456215,-490.0,0.00016875,2]
[369020842,1751435456224,-490.0,0.00016875,2]
[369020844,1751435456234,-2322.4,0.00016875,2]
[369020846,1751435456246,-1048.16,0.00016875,2]
[369020848,1751435456255,-467.03469126,0.00016875,2]
[369020850,1751435456264,-490.0,0.00016875,2]
[369020852,1751435456274,-599.84,0.00016875,2]
[369020854,1751435456283,-807.96,0.00016875,2]
[369020855,1751435456293,-2167.78,0.00016875,2]
[369020857,1751435456303,-754.18,0.00016875,2]
[369020860,1751435456313,-496.84917093,0.00016875,2]
[369020862,1751435456323,-491.6008297,0.00016875,2]
[369020863,1751435456332,-490.0,0.00016875,2]
[369020865,1751435456341,-490.0,0.00016875,2]
[369020867,1751435456351,-1717.43,0.00016875,2]
[369020869,1751435456361,-496.03105754,0.00016875,2]
[369020871,1751435456371,-1722.96,0.00016875,2]
[369020873,1751435456380,-494.68596149,0.00016875,2]
[369020875,1751435456390,-9593.16,0.00016875,2]
[369020877,1751435456402,-568.05,0.00016875,2]
[369020879,1751435456411,-697.77,0.00016875,2]
[369020881,1751435456421,-490.0,0.00016875,2]
[369020883,1751435456430,-490.0,0.00016875,2]
[369020885,1751435456441,-492.8231202,0.00016875,2]
[369020887,1751435456450,-1150.89,0.00016875,2]
[369020889,1751435456459,-627.01,0.00016875,2]
[369020891,1751435456469,-490.0,0.00016875,2]
[369020893,1751435456480,-207.49,0.00016875,2]
[369020895,1751435456489,-490.0,0.00016875,2]
[369020897,1751435456499,-3384.55,0.00016875,2]
[369020899,1751435456508,-491.4498315,0.00016875,2]
[369020901,1751435456517,-490.0,0.00016875,2]
[369020903,1751435456526,-490.0,0.00016875,2]
[369020904,1751435456536,-490.0,0.00016875,2]
[369020906,1751435456545,-7608.88,0.00016875,2]
[369020908,1751435456554,-490.0,0.00016875,2]
[369020910,1751435456563,-1074.93,0.00016875,2]
[369020912,1751435456572,-490.0,0.00016875,2]
[369020914,1751435456583,-2870.33,0.00016875,2]
[369020916,1751435456592,-490.0,0.00016875,2]
[369020918,1751435456601,-273.4325336,0.00016875,2]
[369020920,1751435456611,-2081.14,0.00016875,2]
[369020922,1751435456620,-490.0,0.00016875,2]
[369020924,1751435456629,-490.0,0.00016875,2]
[369020926,1751435456638,-498.94991183,0.00016875,2]
[369020928,1751435456647,-490.0,0.00016875,2]
[369020930,1751435456656,-500.56,0.00016875,2]
[369020932,1751435456665,-490.0,0.00016875,2]
[369020934,1751435456674,-899.23,0.00016875,2]
[369020936,1751435456683,-596.03,0.00016875,2]
[369020938,1751435456693,-1421.01,0.00016875,2]
[369020940,1751435456702,-535.04992365,0.00016875,2]
[369020942,1751435456711,-490.0,0.00016875,2]
[369020944,1751435456720,-950.5,0.00016875,2]
[369020946,1751435456730,-490.0,0.00016875,2]
[369020948,1751435456740,-490.0,0.00016875,2]
[369020950,1751435456751,-490.0,0.00016875,2]
[369020952,1751435456760,-839.94,0.00016875,2]
[369020953,1751435456770,-490.0,0.00016875,2]
[369020955,1751435456780,-1791.3,0.00016875,2]
[369020957,1751435456795,-637.03,0.00016875,2]
[369020959,1751435456805,-2025.73,0.00016875,2]
[369020961,1751435456814,-490.0,0.00016875,2]
[369020963,1751435456824,-1119.85,0.00016875,2]
[369020965,1751435456833,-601.68,0.00016875,2]
[369020967,1751435456843,-494.78445843,0.00016875,2]
[369020969,1751435456852,-4467.12,0.00016875,2]
[369020971,1751435456861,-493.45909764,0.00016875,2]
[369020973,1751435456871,-1001.77,0.00016875,2]
[369020975,1751435456880,-1787.88,0.00016875,2]
[369020977,1751435456889,-490.0,0.00016875,2]
[369020979,1751435456898,-490.0,0.00016875,2]
[369020981,1751435456907,-995.77,0.00016875,2]
[369020983,1751435456916,-1370.33,0.00016875,2]
[369020985,1751435456926,-490.0,0.00016875,2]
[369020987,1751435456935,-800.0,0.000169,6]
[369020989,1751435456945,-168.0,0.00016931,2]
[369020991,1751435456954,-168.0,0.00016935,2]
[369020993,1751435456964,-500.0,0.00016973,2]
[369020995,1751435456973,-162.67617965,0.00016973,2]
[369020997,1751435456984,-500.0,0.00016973,2]
[369020999,1751435456993,-500.0,0.00016973,2]
[369021001,1751435457002,-638.03,0.00016973,2]
[369021003,1751435457011,-500.0,0.00016973,2]
[369021005,1751435457020,-500.0,0.00016973,2]
[369021007,1751435457029,-500.0,0.00016973,2]
[369021009,1751435457038,-490.0,0.00016974,2]
[369021011,1751435457047,-490.0,0.00016974,2]
[369021013,1751435457056,-490.0,0.00016974,2]
[369021015,1751435457065,-490.0,0.00016974,2]
[369021017,1751435457075,-497.16890062,0.00016974,2]
[369021019,1751435457084,-494.76768267,0.00016974,2]
[369021020,1751435457092,-490.0,0.00016974,2]
[369021022,1751435457101,-490.0,0.00016974,2]
[369021024,1751435457111,-490.0,0.00016974,2]
[369021026,1751435457120,-491.71141588,0.00016974,2]
[369021028,1751435457129,-490.0,0.00016974,2]
[369021030,1751435457138,-498.00680252,0.00016974,2]
[369021032,1751435457147,-492.35871868,0.00016974,2]
[369021034,1751435457156,-490.0,0.00016974,2]
[369021036,1751435457165,-493.96992846,0.00016974,2]
[369021038,1751435457175,-490.0,0.00016974,2]
[369021040,1751435457184,-255.66147314,0.00016974,2]
[369021042,1751435457193,-495.80903605,0.00016974,2]
[369021044,1751435457202,-499.10963405,0.00016974,2]
[369021046,1751435457211,-496.82173044,0.00016974,2]
[369021048,1751435457220,-490.0,0.00016974,2]
[369021050,1751435457229,-490.0,0.00016974,2]
[369021052,1751435457238,-491.38607083,0.00016974,2]
[369021054,1751435457247,-490.0,0.00016974,2]
[369021056,1751435457256,-498.69488443,0.00016974,2]
[369021058,1751435457265,-513.69111097,0.00016974,2]
[369021060,1751435457274,-490.0,0.00016974,2]
[369021062,1751435457283,-490.0,0.00016974,2]
[369021063,1751435457292,-500.0,0.00016974,2]
[369021065,1751435457301,-910.17,0.00016974,2]
[369021067,1751435457310,-490.0,0.00016975,2]
[369021069,1751435457320,-490.0,0.00016975,2]
[369021071,1751435457329,-490.0,0.00016975,2]
[369021073,1751435457339,-490.0,0.00016975,2]
[369021075,1751435457348,-490.0,0.00016975,2]
[369021077,1751435457355,-490.0,0.00016975,2]
[369021079,1751435457364,-490.0,0.00016975,2]
[369021081,1751435457373,-491.48240594,0.00016975,2]
[369021083,1751435457382,-490.0,0.00016975,2]
[369021085,1751435457392,-165.97,0.00016975,2]
[369021087,1751435457405,-490.0,0.00016975,2]
[369021089,1751435457414,-490.0,0.00016975,2]
[369021091,1751435457423,-490.0,0.00016975,2]
[369021093,1751435457435,-490.0,0.00016975,2]
[369021095,1751435457444,-490.0,0.00016975,2]
[369021097,1751435457454,-499.08757031,0.00016975,2]
[369021099,1751435457464,-490.0,0.00016975,2]
[369021102,1751435457473,-490.0,0.00016975,2]
[369021103,1751435457484,-490.0,0.00016975,2]
[369021105,1751435457493,-478.76,0.00016975,2]
[369021107,1751435457503,-490.0,0.00016975,2]
[369021109,1751435457512,-490.0,0.00016975,2]
[369021111,1751435457521,-490.0,0.00016975,2]
[369021113,1751435457530,-490.0,0.00016975,2]
[369021115,1751435457539,-490.0,0.00016975,2]
[369021117,1751435457548,-490.0,0.00016975,2]
[369021119,1751435457558,-369.41795349,0.00016975,2]
[369021121,1751435457567,-490.0,0.00016975,2]
[369021123,1751435457577,-490.0,0.00016975,2]
[369021125,1751435457586,-490.0,0.00016975,2]
[369021127,1751435457596,-490.0,0.00016975,2]
[369021129,1751435457605,-490.0,0.00016975,2]
[369021131,1751435457615,-490.0,0.00016975,2]
[369021133,1751435457624,-490.0,0.00016975,2]
[369021135,1751435457637,-490.0,0.00016975,2]
[369021137,1751435457646,-490.0,0.00016975,2]
[369021139,1751435457655,-497.23547844,0.00016975,2]
[369021141,1751435457664,-490.0,0.00016975,2]
[369021143,1751435457673,-490.0,0.00016975,2]
[369021145,1751435457683,-490.0,0.00016975,2]
[369021147,1751435457692,-501.52982268,0.00016975,2]
[369021149,1751435457702,-490.0,0.00016975,2]
[369021151,1751435457711,-490.0,0.00016975,2]
[369021153,1751435457720,-490.0,0.00016975,2]
[369021155,1751435457730,-490.0,0.00016975,2]
[369021157,1751435457739,-490.0,0.00016975,2]
[369021159,1751435457750,-490.0,0.00016975,2]
[369021160,1751435457759,-490.0,0.00016975,2]
[369021163,1751435457769,-490.0,0.00016975,2]
[369021165,1751435457778,-490.0,0.00016975,2]
[369021167,1751435457788,-490.0,0.00016975,2]
[369021168,1751435457798,-490.0,0.00016975,2]
[369021171,1751435457807,-490.0,0.00016975,2]
[369021172,1751435457816,-490.0,0.00016975,2]
[369021174,1751435457826,-490.0,0.00016975,2]
[369021176,1751435457835,-490.0,0.00016975,2]
[369021178,1751435457844,-586.03,0.00016975,2]
[369021180,1751435457853,-490.0,0.00016975,2]
[369021182,1751435457862,-490.0,0.00016975,2]
[369021184,1751435457872,-490.0,0.00016975,2]
[369021186,1751435457881,-490.0,0.00016975,2]
[369021188,1751435457890,-525.71,0.00016975,2]
[369021190,1751435457900,-889.32,0.00016975,2]
[369021193,1751435457910,-490.0,0.00016975,2]
[369021194,1751435457919,-490.0,0.00016975,2]
[369021197,1751435457929,-490.0,0.00016975,2]
[369021199,1751435457938,-614.31,0.00016975,2]
[369021200,1751435457947,-490.0,0.00016975,2]
[369021202,1751435457958,-490.0,0.00016975,2]
[369021205,1751435457967,-490.0,0.00016975,2]
[369021206,1751435457977,-490.0,0.00016975,2]
[369021208,1751435457986,-617.76,0.00016975,2]
[369021227,1751435458153,-490.0,0.00016975,2]
[369021229,1751435458162,-490.0,0.00016975,2]
[369021231,1751435458172,-490.0,0.00016975,2]
[369021233,1751435458181,-490.0,0.00016975,2]
[369021235,1751435458190,-490.0,0.00016975,2]
[369021237,1751435458200,-492.90538099,0.00016975,2]
[369021239,1751435458209,-490.0,0.00016975,2]
[369021241,1751435458218,-490.0,0.00016975,2]
[369021243,1751435458227,-490.0,0.00016975,2]
[369021245,1751435458237,-490.0,0.00016975,2]
[369021247,1751435458247,-490.0,0.00016975,2]
[369021249,1751435458256,-503.55,0.00016975,2]
[369021251,1751435458266,-500.0,0.00016975,2]
[369021253,1751435458275,-510.0,0.00016975,2]
[369021255,1751435458283,-490.0,0.00016975,2]
[369021257,1751435458293,-490.0,0.00016975,2]
[369021259,1751435458302,-490.0,0.00016975,2]
[369021261,1751435458311,-490.0,0.00016975,2]
[369021263,1751435458321,-490.0,0.00016975,2]
[369021265,1751435458329,-490.0,0.00016975,2]
[369021267,1751435458339,-441.19075682,0.00016975,2]
[369021268,1751435458349,-500.0,0.00016975,2]
[369021271,1751435458359,-490.0,0.00016975,2]
[369021273,1751435458368,-515.41,0.00016975,2]
[369021274,1751435458377,-490.0,0.00016975,2]
[369021276,1751435458386,-542.25,0.00016975,2]
[369021278,1751435458400,-490.0,0.00016975,2]
[369021280,1751435458410,-490.0,0.00016975,2]
[369021282,1751435458420,-849.93,0.00016975,2]
[369021284,1751435458429,-970.56,0.00016975,2]
[369021286,1751435458439,-490.0,0.00016975,2]
[369021288,1751435458448,-490.0,0.00016975,2]
[369021290,1751435458457,-490.0,0.00016975,2]
[369021292,1751435458468,-490.0,0.00016975,2]
[369021294,1751435458477,-490.0,0.00016975,2]
[369021296,1751435458487,-490.0,0.00016975,2]
[369021298,1751435458496,-490.0,0.00016975,2]
[369021300,1751435458506,-490.0,0.00016975,2]
[369021302,1751435458515,-490.0,0.00016975,2]
[369021304,1751435458525,-490.0,0.00016975,2]
[369021306,1751435458534,-490.0,0.00016975,2]
[369021308,1751435458543,-500.15164895,0.00016975,2]
[369021310,1751435458552,-493.66392733,0.00016975,2]
[369021312,1751435458562,-490.0,0.00016975,2]
[369021314,1751435458571,-490.0,0.00016975,2]
[369021316,1751435458582,-872.88,0.00016975,2]
[369021318,1751435458591,-490.0,0.00016975,2]
[369021319,1751435458600,-490.0,0.00016975,2]
[369021321,1751435458610,-490.0,0.00016975,2]
[369021323,1751435458619,-902.67,0.00016975,2]
[369021325,1751435458629,-490.0,0.00016975,2]
[369021327,1751435458638,-490.0,0.00016975,2]
[369021329,1751435458647,-490.0,0.00016975,2]
[369021331,1751435458656,-490.0,0.00016975,2]
[369021333,1751435458665,-490.0,0.00016975,2]
[369021335,1751435458675,-490.0,0.00016975,2]
[369021337,1751435458684,-490.0,0.00016975,2]
[369021339,1751435458693,-490.0,0.00016975,2]
[369021341,1751435458703,-587.95,0.00016975,2]
[369021343,1751435458713,-490.0,0.00016975,2]
[369021345,1751435458722,-490.0,0.00016975,2]
[369021347,1751435458731,-490.0,0.00016975,2]
[369021349,1751435458740,-490.0,0.00016975,2]
[369021351,1751435458750,-490.0,0.00016975,2]
[369021353,1751435458759,-565.78,0.00016975,2]
[369021355,1751435458768,-507.77521217,0.00016975,2]
[369021357,1751435458779,-490.0,0.00016975,2]
[369021359,1751435458788,-490.0,0.00016975,2]
[369021361,1751435458797,-490.0,0.00016975,2]
[369021363,1751435458807,-490.0,0.00016975,2]
[369021365,1751435458816,-549.0,0.00016975,2]
[369021367,1751435458825,-490.0,0.00016975,2]
[369021369,1751435458834,-490.0,0.00016975,2]
[369021371,1751435458843,-490.0,0.00016975,2]
[369021373,1751435458853,-442.08466205,0.00016975,2]
[369021375,1751435458862,-490.0,0.00016975,2]
[369021377,1751435458871,-490.0,0.00016975,2]
[369021379,1751435458880,-490.0,0.00016975,2]
[369021381,1751435458890,-966.5,0.00016975,2]
[369021383,1751435458899,-490.0,0.00016975,2]
[369021385,1751435458908,-490.0,0.00016975,2]
[369021386,1751435458917,-490.0,0.00016975,2]
[369021388,1751435458927,-490.0,0.00016975,2]
[369021390,1751435458936,-490.0,0.00016975,2]
[369021392,1751435458946,-490.0,0.00016975,2]
[369021394,1751435458955,-490.0,0.00016975,2]
[369021396,1751435458964,-453.97,0.00016975,2]
[369021398,1751435458973,-490.0,0.00016975,2]
[369021400,1751435458982,-782.85,0.00016975,2]
[369021402,1751435458991,-327.72830949,0.00016975,2]
[369021404,1751435459000,-490.0,0.00016975,2]
[369021406,1751435459009,-490.0,0.00016975,2]
[369021408,1751435459018,-665.24,0.00016975,2]
[369021410,1751435459027,-490.0,0.00016975,2]
[369021412,1751435459036,-498.03089928,0.00016975,2]
[369021414,1751435459045,-582.15,0.00016975,2]
[369021416,1751435459055,-490.0,0.00016975,2]
[369021418,1751435459064,-490.0,0.00016975,2]
[369021420,1751435459074,-490.0,0.00016975,2]
[369021422,1751435459083,-490.0,0.00016975,2]
[369021424,1751435459092,-490.0,0.00016975,2]
[369021426,1751435459102,-490.0,0.00016975,2]
[369021428,1751435459111,-490.0,0.00016975,2]
[369021430,1751435459120,-490.0,0.00016975,2]
[369021432,1751435459129,-490.0,0.00016975,2]
[369021434,1751435459138,-490.0,0.00016975,2]
[369021436,1751435459148,-490.0,0.00016975,2]
[369021438,1751435459157,-490.0,0.00016975,2]
[369021440,1751435459166,-242.44,0.00016975,2]
[369021442,1751435459175,-490.0,0.00016975,2]
[369021444,1751435459184,-490.0,0.00016975,2]
[369021445,1751435459193,-490.0,0.00016975,2]
[369021447,1751435459205,-719.15,0.00016975,2]
[369021449,1751435459215,-490.0,0.00016975,2]
[369021451,1751435459224,-490.0,0.00016975,2]
[369021452,1751435459234,-490.0,0.00016975,2]
[369021453,1751435459244,-592.02,0.00016975,2]
[369021454,1751435459253,-490.0,0.00016975,2]
[369021455,1751435459264,-517.98180995,0.00016975,2]
[369021456,1751435459273,-490.0,0.00016975,2]
[369021457,1751435459282,-490.0,0.00016975,2]
[369021458,1751435459292,-219.38,0.00016975,2]
[369021459,1751435459301,-490.0,0.00016975,2]
[369021460,1751435459310,-288.71797627,0.00016975,2]
[369021461,1751435459321,-490.0,0.00016975,2]
[369021462,1751435459330,-490.0,0.00016975,2]
[369021463,1751435459339,-490.0,0.00016975,2]
[369021464,1751435459349,-686.21,0.00016975,2]
[369021465,1751435459359,-500.04645378,0.00016975,2]
[369021467,1751435459369,-490.0,0.00016975,2]
[369021468,1751435459379,-735.78,0.00016975,2]
[369021470,1751435459388,-490.0,0.00016975,2]
[369021472,1751435459399,-490.0,0.00016975,2]
[369021474,1751435459409,-622.86,0.00016975,2]
[369021476,1751435459418,-490.0,0.00016975,2]
[369021478,1751435459428,-915.06,0.00016975,2]
[369021480,1751435459437,-477.99834022,0.00016975,2]
[369021482,1751435459447,-490.0,0.00016975,2]
[369021484,1751435459456,-490.0,0.00016975,2]
[369021486,1751435459465,-678.95,0.00016975,2]
[369021487,1751435459476,-490.0,0.00016975,2]
[369021489,1751435459485,-1008.35,0.00016975,2]
[369021491,1751435459494,-750.66,0.00016975,2]
[369021493,1751435459504,-490.0,0.00016975,2]
[369021495,1751435459513,-537.57354513,0.00016975,2]
[369021497,1751435459522,-250.46732276,0.00016975,2]
[369021499,1751435459531,-200.16,0.00016975,2]
[369021501,1751435459540,-1016.21,0.00016975,2]
[369021503,1751435459549,-511.60635614,0.00016975,2]
[369021505,1751435459558,-490.0,0.00016975,2]
[369021507,1751435459568,-1096.52,0.00016975,2]
[369021509,1751435459576,-490.0,0.00016975,2]
[369021511,1751435459586,-620.15,0.00016975,2]
[369021513,1751435459595,-490.0,0.00016975,2]
[369021515,1751435459604,-490.0,0.00016975,2]
[369021517,1751435459613,-492.04273516,0.00016975,2]
[369021519,1751435459622,-692.82,0.00016975,2]
[369021521,1751435459631,-709.59,0.00016975,2]
[369021523,1751435459640,-490.0,0.00016975,2]
[369021525,1751435459649,-800.52,0.00016975,2]
[369021526,1751435459658,-300.0,0.00016975,2]
[369021528,1751435459667,-909.18,0.00016975,2]
[369021530,1751435459676,-490.0,0.00016975,2]
[369021532,1751435459685,-569.50671587,0.00016975,2]
[369021534,1751435459695,-490.0,0.00016975,2]
[369021536,1751435459703,-2008.55,0.00016975,2]
[369021538,1751435459713,-524.49,0.00016975,2]
[369021540,1751435459723,-4837.46,0.00016975,2]
[369021542,1751435459731,-490.0,0.00016975,2]
[369021544,1751435459740,-926.62,0.00016975,2]
[369021546,1751435459750,-490.0,0.00016975,2]
[369021548,1751435459759,-4330.05,0.00016975,2]
[369021550,1751435459769,-490.0,0.00016975,2]
[369021552,1751435459778,-4934.27,0.00016975,2]
[369021554,1751435459787,-636.16,0.00016975,2]
[369021556,1751435459796,-490.0,0.00016975,2]
[369021558,1751435459805,-774.48,0.00016975,2]
[369021560,1751435459815,-1048.04,0.00016975,2]
[369021562,1751435459824,-2525.8,0.00016975,2]
[369021564,1751435459833,-490.0,0.00016975,2]
[369021566,1751435459842,-490.0,0.00016975,2]
[369021568,1751435459851,-490.0,0.00016975,2]
[369021570,1751435459861,-490.0,0.00016975,2]
[369021572,1751435459870,-490.0,0.00016975,2]
[369021574,1751435459880,-692.02,0.00016975,2]
[369021576,1751435459889,-361.09,0.00016975,2]
[369021578,1751435459898,-2844.1,0.00016975,2]
[369021580,1751435459907,-712.6,0.00016975,2]
[369021582,1751435459917,-490.0,0.00016975,2]
[369021584,1751435459929,-490.0,0.00016975,2]
[369021585,1751435459939,-490.0,0.00016975,2]
[369021587,1751435459950,-507.49,0.00016975,2]
[369021588,1751435459961,-4564.22,0.00016975,2]
[369021589,1751435459971,-1700.12,0.00016975,2]
[369021590,1751435459980,-490.0,0.00016975,2]
[369021591,1751435459990,-5717.79,0.00016975,2]
[369021592,1751435459999,-490.0,0.00016975,2]
[369021593,1751435460008,-490.0,0.00016975,2]
[369021594,1751435460019,-490.0,0.00016975,2]
[369021595,1751435460027,-996.44,0.00016975,2]
[369021596,1751435460037,-490.0,0.00016975,2]
[369021597,1751435460047,-312.05,0.00016975,2]
[369021598,1751435460057,-1000.0,0.00016975,2]
[369021599,1751435460066,-494.39162905,0.00016975,2]
[369021600,1751435460075,-1414.35,0.00016975,2]
[369021601,1751435460084,-490.0,0.00016975,2]
[369021602,1751435460093,-490.0,0.00016975,2]
[369021603,1751435460104,-490.0,0.00016975,2]
[369021604,1751435460114,-724.85,0.00016975,2]
[369021605,1751435460125,-555.48,0.00016975,2]
[369021606,1751435460135,-490.0,0.00016975,2]
[369021607,1751435460144,-1107.99,0.00016975,2]
[369021608,1751435460153,-490.0,0.00016975,2]
[369021610,1751435460162,-490.0,0.00016975,2]
[369021612,1751435460171,-490.0,0.00016975,2]
[369021614,1751435460180,-500.0,0.00016975,2]
[369021616,1751435460189,-1008.42,0.00016975,2]
[369021618,1751435460199,-490.0,0.00016975,2]
[369021620,1751435460208,-1390.88,0.00016975,2]
[369021622,1751435460218,-1527.77,0.00016975,2]
[369021624,1751435460227,-490.0,0.00016975,2]
[369021626,1751435460237,-490.0,0.00016975,2]
[369021628,1751435460247,-1145.31,0.00016975,2]
[369021630,1751435460256,-487.56705936,0.00016975,2]
[369021632,1751435460265,-490.0,0.00016975,2]
[369021633,1751435460274,-490.0,0.00016975,2]
[369021635,1751435460283,-614.67,0.00016975,2]
[369021637,1751435460292,-2060.09,0.00016975,2]
[369021639,1751435460301,-1028.46,0.00016975,2]
[369021641,1751435460310,-490.0,0.00016975,2]
[369021643,1751435460320,-490.0,0.00016975,2]
[369021645,1751435460329,-495.63201287,0.00016975,2]
[369021647,1751435460338,-9604.94,0.00016975,2]
[369021649,1751435460347,-1122.61,0.00016975,2]
[369021651,1751435460357,-556.94788432,0.00016975,2]
[369021653,1751435460366,-10466.64,0.00016975,2]
[369021655,1751435460375,-490.0,0.00016975,2]
[369021657,1751435460385,-2463.77,0.00016975,2]
[369021659,1751435460398,-872.5,0.00016975,2]
[369021661,1751435460411,-490.0,0.00016975,2]
[369021662,1751435460421,-490.0,0.00016975,2]
[369021664,1751435460430,-500.0,0.00016975,2]
[369021667,1751435460441,-1465.09,0.00016975,2]
[369021668,1751435460450,-3572.48,0.00016975,2]
[369021670,1751435460460,-490.0,0.00016975,2]
[369021673,1751435460470,-490.0,0.00016975,2]
[369021689,1751435460610,-499.51,0.00016975,2]
[369021691,1751435460632,-490.0,0.00016975,2]
[369021693,1751435460642,-757.03,0.00016975,2]
[369021695,1751435460651,-925.66,0.00016975,2]
[369021697,1751435460660,-910.17,0.00016975,2]
[369021699,1751435460669,-559.59148653,0.00016975,2]
[369021701,1751435460679,-490.0,0.00016975,2]
[369021703,1751435460688,-490.0,0.00016975,2]
[369021705,1751435460697,-490.0,0.00016975,2]
[369021707,1751435460707,-691.47,0.00016975,2]
[369021709,1751435460716,-490.0,0.00016975,2]
[369021711,1751435460725,-923.13,0.00016975,2]
[369021713,1751435460735,-490.0,0.00016975,2]
[369021715,1751435460745,-7104.16,0.00016975,2]
[369021717,1751435460753,-490.0,0.00016975,2]
[369021719,1751435460763,-495.19363564,0.00016975,2]
[369021721,1751435460773,-490.0,0.00016975,2]
[369021723,1751435460782,-1706.64,0.00016975,2]
[369021725,1751435460791,-492.31213127,0.00016975,2]
[369021727,1751435460801,-1059.57,0.00016975,2]
[369021729,1751435460810,-490.0,0.00016975,2]
[369021731,1751435460819,-490.0,0.00016975,2]
[369021733,1751435460828,-2003.3,0.00016975,2]
[369021735,1751435460838,-490.0,0.00016975,2]
[369021736,1751435460847,-490.0,0.00016975,2]
[369021738,1751435460856,-490.0,0.00016975,2]
[369021740,1751435460866,-490.0,0.00016975,2]
[369021742,1751435460876,-490.0,0.00016975,2]
[369021744,1751435460885,-490.0,0.00016975,2]
[369021746,1751435460895,-490.0,0.00016975,2]
[369021749,1751435460905,-798.99,0.00016975,2]
[369021750,1751435460914,-490.0,0.00016975,2]